Workbook

Sheet App 2-JA
O1: File Number: | P1: EB-2025-0252 | Q1: 2016 | R1: Last Rebasing Year | S1: Column
O2: Exhibit: | Q2: =2027 -> 2027 | R2: 2010 | S2: B
O3: Tab: | R3: 2011 | S3: D
O4: Schedule: | R4: 2012 | S4: G
O5: Page: | R5: 2013 | S5: J
R6: 2014 | S6: M
O7: Date: | P7: 2026-02-20 | R7: 2015 | S7: P
R8: 2016 | S8: S
A9: Appendix 2-JA | R9: 2017 | S9: V
A10: Summary of Recoverable OM&A Expenses
B11: =2027-10 -> 2017 | C11: =2027-9 -> 2018 | D11: =2027-8 -> 2019 | E11: =2027-7 -> 2020 | F11: =2027-6 -> 2021 | G11: =2027-5 -> 2022 | H11: =2027-4 -> 2023 | I11: =2027-3 -> 2024 | J11: =2027-2 -> 2025 | K11: =2026 -> 2026 | L11: =2027 -> 2027 | M11: =L11+1 -> 2028 | N11: =M11+1 -> 2029 | O11: 2030 | P11: 2031 | T11: =B11 -> 2017 | U11: =C11 -> 2018 | V11: =D11 -> 2019 | W11: =E11 -> 2020 | X11: =F11 -> 2021 | Y11: =G11 -> 2022 | Z11: =H11 -> 2023 | AA11: =I11 -> 2024 | AB11: =J11 -> 2025 | AC11: =K11 -> 2026 | AE11: =L11 -> 2027 | AG11: =M11 -> 2028 | AH11: =N11 -> 2029 | AI11: =O11 -> 2030 | AJ11: =P11 -> 2031
B12: =CONCATENATE(B11," ",IF($Q1=B11,"Last Rebasing Year ",""),"Actuals") -> 2017 Actuals | C12: =CONCATENATE(C11," ",IF($Q1=C11,"Last Rebasing Year ",""),"Actuals") -> 2018 Actuals | D12: =CONCATENATE(D11," ",IF($Q1=D11,"Last Rebasing Year ",""),"Actuals") -> 2019 Actuals | E12: =CONCATENATE(E11," ",IF($Q1=E11,"Last Rebasing Year ",""),"Actuals") -> 2020 Actuals | F12: =CONCATENATE(F11," ",IF($Q1=F11,"Last Rebasing Year ",""),"Actuals") -> 2021 Actuals | G12: =CONCATENATE(G11," ",IF($Q1=G11,"Last Rebasing Year ",""),"Actuals") -> 2022 Actuals | H12: =CONCATENATE(H11," ",IF($Q1=H11,"Last Rebasing Year ",""),"Actuals") -> 2023 Actuals | I12: =CONCATENATE(I11," ",IF($Q1=I11,"Last Rebasing Year ",""),"Actuals") -> 2024 Actuals | J12: =CONCATENATE(J11," ",IF($Q1=J11,"Last Rebasing Year ",""),"Actuals") -> 2025 Actuals | K12: =2026 & " Bridge Year" -> 2026 Bridge Year | L12: =2027 & " Test Year" -> 2027 Test Year | M12: =2027+1 & " Forecast Year" -> 2028 Forecast Year | N12: =2027+2 & " Forecast Year" -> 2029 Forecast Year | O12: =2027+3 & " Forecast Year" -> 2030 Forecast Year | P12: =2027+4 & " Forecast Year" -> 2031 Forecast Year | T12: =CONCATENATE(IF($Q1=T11,"Last Rebasing Year ",""),T11," Actuals") -> 2017 Actuals | U12: 2018 Actuals | V12: 2019 Actuals | W12: 2020 Actuals | X12: 2021 Actuals | Y12: 2022 Actuals | Z12: 2023 Actuals | AA12: 2024 Actuals | AB12: 2025 Actuals | AC12: =CONCATENATE(AC11," Bridge Year") -> 2026 Bridge Year | AD12: =CONCATENATE("Variance ",AC11," Bridge vs. ",AC11-1," Bridge") -> Variance 2026 Bridge vs. 2025 Bridge | AE12: =CONCATENATE(AE11," Test Year") -> 2027 Test Year | AF12: =CONCATENATE("Variance ",AE11," Test vs. ",AE11-1," Bridge") -> Variance 2027 Test vs. 2026 Bridge
A13: Reporting Basis | B13: MIFRS | C13: MIFRS | D13: MIFRS | E13: MIFRS | F13: MIFRS | G13: MIFRS | H13: MIFRS | I13: MIFRS | J13: MIFRS | K13: MIFRS | L13: MIFRS | M13: MIFRS | N13: MIFRS | O13: MIFRS | P13: MIFRS | S13: Operations | T13: =B14 -> 53256001.56 | U13: =C14 -> 52729994.24 | V13: =D14 -> 89541387.43 | W13: =E14 -> 84136002.69 | X13: =F14 -> 83214862.07 | Y13: =G14 -> 93267998.23 | Z13: =H14 -> 87079578.71 | AA13: =I14 -> 85996672.03 | AB13: =J14 -> 92919701.79 | AC13: =K14 -> 100622247.2 | AD13: =AC13-AB13 -> 7702545.37 | AE13: =L14 -> 118175455.2 | AF13: =AE13-AC13 -> 17553208.04
A14: Operations | B14: 53256001.56 | C14: 52729994.24 | D14: 89541387.43 | E14: 84136002.69 | F14: 83214862.07 | G14: 93267998.23 | H14: 87079578.71 | I14: 85996672.03 | J14: 92919701.79 | K14: 100622247.2 | L14: 118175455.2 | M14: 125263498.4 | N14: 130986784.7 | O14: 134767671.4 | P14: 138409767.8 | S14: Maintenance | T14: =B15 -> 27671305.28 | U14: =C15 -> 33232383.63 | V14: =D15 -> 27747271.49 | W14: =E15 -> 26763321.45 | X14: =F15 -> 29945001.18 | Y14: =G15 -> 33583460.43 | Z14: =H15 -> 36374713.48 | AA14: =I15 -> 28854345.14 | AB14: =J15 -> 30966641.9 | AC14: =K15 -> 22050503.8 | AD14: -8916138.1 | AE14: =L15 -> 23095217.64 | AF14: 1044713.84
A15: Maintenance | B15: 27671305.28 | C15: 33232383.63 | D15: 27747271.49 | E15: 26763321.45 | F15: 29945001.18 | G15: 33583460.43 | H15: 36374713.48 | I15: 28854345.14 | J15: 30966641.9 | K15: 22050503.8 | L15: 23095217.64 | M15: 23735155.05 | N15: 24693466.36 | O15: 25406627.38 | P15: 26160167.28 | S15: Billing and Collecting | T15: =B19 -> 44060910.87 | U15: =C19 -> 37645860.69 | V15: =D19 -> 43381817.41 | W15: =E19 -> 64273545.97 | X15: =F19 -> 57378924.85 | Y15: =G19 -> 51611529.22 | Z15: =H19 -> 48598201.98 | AA15: =I19 -> 49176173.74 | AB15: =J19 -> 54054668.9 | AC15: =K19 -> 55077813.66 | AD15: 1023144.757 | AE15: =L19 -> 54227802.42 | AF15: -850011.2401
A16: SubTotal | B16: =SUM(B14:B15) -> 80927306.84 | C16: 85962377.87 | D16: 117288658.9 | E16: 110899324.1 | F16: 113159863.2 | G16: =SUM(G14:G15) -> 126851458.7 | H16: 123454292.2 | I16: 114851017.2 | J16: 123886343.7 | K16: 122672751 | L16: =SUM(L14:L15) -> 141270672.8 | M16: =SUM(M14:M15) -> 148998653.4 | N16: 155680251.1 | O16: 160174298.8 | P16: 164569935.1 | S16: Community Relations | T16: =B20 -> 3053878.83 | U16: =C20 -> 3069045.17 | V16: =D20 -> 2845057 | W16: =E20 -> 4445930.77 | X16: =F20 -> 3230371.15 | Y16: =G20 -> 2562553.08 | Z16: =H20 -> 2228912.77 | AA16: =I20 -> 2210466.04 | AB16: =J20 -> 2224552.48 | AC16: =K20 -> 2285704.87 | AD16: 61152.39 | AE16: =L20 -> 2373752.78 | AF16: 88047.91
A17: %Change (year over year) | B17: =IF(ISERROR((B16-HLOOKUP(B11-1,$A$11:A26,6,FALSE))/HLOOKUP(B11-1,$A$11:A26,6,FALSE)), "", (B16-HLOOKUP(B11-1,$A$11:A26,6,FALSE))/HLOOKUP(B11-1,$A$11:A26,6,FALSE)) ->  | C17: =IF(ISERROR((C16-HLOOKUP(C11-1,$A$11:B26,6,FALSE))/HLOOKUP(C11-1,$A$11:B26,6,FALSE)), "", (C16-HLOOKUP(C11-1,$A$11:B26,6,FALSE))/HLOOKUP(C11-1,$A$11:B26,6,FALSE)) -> 0.06221720735 | D17: =IF(ISERROR((D16-HLOOKUP(D11-1,$A$11:C26,6,FALSE))/HLOOKUP(D11-1,$A$11:C26,6,FALSE)), "", (D16-HLOOKUP(D11-1,$A$11:C26,6,FALSE))/HLOOKUP(D11-1,$A$11:C26,6,FALSE)) -> 0.3644185029 | E17: =IF(ISERROR((E16-HLOOKUP(E11-1,$A$11:D26,6,FALSE))/HLOOKUP(E11-1,$A$11:D26,6,FALSE)), "", (E16-HLOOKUP(E11-1,$A$11:D26,6,FALSE))/HLOOKUP(E11-1,$A$11:D26,6,FALSE)) -> -0.05447529914 | F17: =IF(ISERROR((F16-HLOOKUP(F11-1,$A$11:E26,6,FALSE))/HLOOKUP(F11-1,$A$11:E26,6,FALSE)), "", (F16-HLOOKUP(F11-1,$A$11:E26,6,FALSE))/HLOOKUP(F11-1,$A$11:E26,6,FALSE)) -> 0.02038370502 | G17: =IF(ISERROR((G16-HLOOKUP(G11-1,$A$11:F26,6,FALSE))/HLOOKUP(G11-1,$A$11:F26,6,FALSE)), "", (G16-HLOOKUP(G11-1,$A$11:F26,6,FALSE))/HLOOKUP(G11-1,$A$11:F26,6,FALSE)) -> 0.1209933895 | H17: =IF(ISERROR((H16-HLOOKUP(H11-1,$A$11:G26,6,FALSE))/HLOOKUP(H11-1,$A$11:G26,6,FALSE)), "", (H16-HLOOKUP(H11-1,$A$11:G26,6,FALSE))/HLOOKUP(H11-1,$A$11:G26,6,FALSE)) -> -0.0267806654 | I17: =IF(ISERROR((I16-HLOOKUP(I11-1,$A$11:H26,6,FALSE))/HLOOKUP(I11-1,$A$11:H26,6,FALSE)), "", (I16-HLOOKUP(I11-1,$A$11:H26,6,FALSE))/HLOOKUP(I11-1,$A$11:H26,6,FALSE)) -> -0.06968793768 | J17: =IF(ISERROR((J16-HLOOKUP(J11-1,$A$11:I26,6,FALSE))/HLOOKUP(J11-1,$A$11:I26,6,FALSE)), "", (J16-HLOOKUP(J11-1,$A$11:I26,6,FALSE))/HLOOKUP(J11-1,$A$11:I26,6,FALSE)) -> 0.07866997387 | K17: =IF(ISERROR((K16-HLOOKUP(K11-1,$A$11:J26,6,FALSE))/HLOOKUP(K11-1,$A$11:J26,6,FALSE)), "", (K16-HLOOKUP(K11-1,$A$11:J26,6,FALSE))/HLOOKUP(K11-1,$A$11:J26,6,FALSE)) -> -0.009796017009 | L17: =IF(ISERROR((L16-K16)/K16), "", (L16-K16)/K16) -> 0.1516059739 | M17: =IF(ISERROR((M16-L16)/L16), "", (M16-L16)/L16) -> 0.05470336089 | N17: 0.04484334244 | O17: 0.02886716625 | P17: 0.02744283168 | S17: Administrative and General | T17: =B21 -> 87281606.69 | U17: =C21 -> 105505504.9 | V17: =D21 -> 100983082.5 | W17: =E21 -> 105801265.7 | X17: =F21 -> 100996486 | Y17: =G21 -> 107591891.7 | Z17: =H21 -> 112963516.1 | AA17: =I21 -> 125764586.2 | AB17: =J21 -> 130773579.5 | AC17: =K21 -> 138756914.5 | AD17: 7983334.988 | AE17: =L21 -> 157165104.7 | AF17: 18408190.21
A18: %Change (Test Year vs Last Rebasing Year - Actual) | L18: =IF(ISERROR((L16-#REF!)/#REF!), "", (L16-#REF!)/#REF!) ->  | S18: Total OM&A Expenses | T18: =B25 -> 215323703.2 | U18: =C25 -> 232182788.7 | V18: =D25 -> 264498615.8 | W18: =E25 -> 285420066.6 | X18: =F25 -> 274765645.3 | Y18: =G25 -> 288617432.6 | Z18: =H25 -> 287244923.1 | AA18: =I25 -> 292002243.1 | AB18: =J25 -> 310939144.6 | AC18: =K25 -> 318793184 | AD18: 7854039.405 | AE18: =L25 -> 355037332.8 | AF18: 36244148.76
A19: Billing and Collecting | B19: 44060910.87 | C19: 37645860.69 | D19: 43381817.41 | E19: 64273545.97 | F19: 57378924.85 | G19: 51611529.22 | H19: 48598201.98 | I19: 49176173.74 | J19: 54054668.9 | K19: 55077813.66 | L19: 54227802.42 | M19: 56402655.34 | N19: 57407346.09 | O19: 59563041.89 | P19: 61505587.16 | S19: Adjustments for Total non-recoverable items3
A20: Community Relations | B20: 3053878.83 | C20: 3069045.17 | D20: 2845057 | E20: 4445930.77 | F20: 3230371.15 | G20: 2562553.08 | H20: 2228912.77 | I20: 2210466.04 | J20: 2224552.48 | K20: 2285704.87 | L20: 2373752.78 | M20: 2452852.1 | N20: 2526914.27 | O20: 2602805.06 | P20: 2679465.58 | S20: Total Recoverable OM&A Expenses | T20: =IF(T11<=2016, 0, T18-T19) -> 215323703.2 | U20: 232182788.7 | V20: 264498615.8 | W20: 285420066.6 | X20: 274765645.3 | Y20: 288617432.6 | Z20: 287244923.1 | AA20: 292002243.1 | AB20: =IF(AB11<=2016, 0, AB18-AB19) -> 310939144.6 | AC20: =IF(AC11<=2016, 0, AC18-AC19) -> 318793184 | AD20: =AD18-AD19 -> 7854039.405 | AE20: =AE18-AE19 -> 355037332.8 | AF20: =AF18-AF19 -> 36244148.76
A21: Administrative and General | B21: 87281606.69 | C21: 105505504.9 | D21: 100983082.5 | E21: 105801265.7 | F21: 100996486 | G21: 107591891.7 | H21: 112963516.1 | I21: 125764586.2 | J21: 130773579.5 | K21: 138756914.5 | L21: 157165104.7 | M21: 164092624.5 | N21: 173861570.3 | O21: 181661261.7 | P21: 186354520.4 | S21: Variance from previous year | T21: =IF(T11<=2017, 0, T20-S20) -> 0 | U21: =IF(U11<=2016, 0, U20-T20) -> 16859085.44 | V21: =IF(V11<=2016, 0, V20-U20) -> 32315827.16 | W21: 20921450.78 | X21: -10654421.31 | Y21: 13851787.32 | Z21: -1372509.546 | AA21: 4757320.07 | AB21: 18936901.47 | AC21: =IF(AC11<=2016, 0, AC20-AB20) -> 7854039.405 | AE21: =AE20-AC20 -> 36244148.76
A22: SubTotal | B22: =SUM(B19:B21) -> 134396396.4 | C22: 146220410.8 | D22: 147209956.9 | E22: 174520742.5 | F22: 161605782 | G22: 161765974 | H22: 163790630.9 | I22: 177151226 | J22: =SUM(J19:J21) -> 187052800.9 | K22: =SUM(K19:K21) -> 196120433.1 | L22: =SUM(L19:L21) -> 213766659.9 | M22: =SUM(M19:M21) -> 222948132 | N22: =SUM(N19:N21) -> 233795830.7 | O22: 243827108.7 | P22: 250539573.2 | S22: Percent change (year over year) | T22: =IF(T11<=2016, 0, IF(ISERROR(T21/S20), "", T21/S20)) ->  | U22: =IF(U11<=2016, 0, IF(ISERROR(U21/T20), "", U21/T20)) -> 0.07829646802 | V22: =IF(V11<=2016, 0, IF(ISERROR(V21/U20), "", V21/U20)) -> 0.1391826989 | W22: 0.07909852651 | X22: -0.03732891468 | Y22: 0.05041309771 | Z22: -0.004755463085 | AA22: 0.01656189435 | AB22: 0.0648519041 | AC22: 0.02525908861 | AE22: =IF(ISERROR(AE21/AC20), "", AE21/AC20) -> 0.1136917305
A23: %Change (year over year) | B23: =IF(ISERROR((B22-HLOOKUP(B11-1,$A$11:A26,12,FALSE))/HLOOKUP(B11-1,$A$11:A26,12,FALSE)), "", (B22-HLOOKUP(B11-1,$A$11:A26,12,FALSE))/HLOOKUP(B11-1,$A$11:A26,12,FALSE)) ->  | C23: =IF(ISERROR((C22-HLOOKUP(C11-1,$A$11:B26,12,FALSE))/HLOOKUP(C11-1,$A$11:B26,12,FALSE)), "", (C22-HLOOKUP(C11-1,$A$11:B26,12,FALSE))/HLOOKUP(C11-1,$A$11:B26,12,FALSE)) -> 0.08797865666 | D23: =IF(ISERROR((D22-HLOOKUP(D11-1,$A$11:C26,12,FALSE))/HLOOKUP(D11-1,$A$11:C26,12,FALSE)), "", (D22-HLOOKUP(D11-1,$A$11:C26,12,FALSE))/HLOOKUP(D11-1,$A$11:C26,12,FALSE)) -> 0.006767496447 | E23: =IF(ISERROR((E22-HLOOKUP(E11-1,$A$11:D26,12,FALSE))/HLOOKUP(E11-1,$A$11:D26,12,FALSE)), "", (E22-HLOOKUP(E11-1,$A$11:D26,12,FALSE))/HLOOKUP(E11-1,$A$11:D26,12,FALSE)) -> 0.1855226788 | F23: =IF(ISERROR((F22-HLOOKUP(F11-1,$A$11:E26,12,FALSE))/HLOOKUP(F11-1,$A$11:E26,12,FALSE)), "", (F22-HLOOKUP(F11-1,$A$11:E26,12,FALSE))/HLOOKUP(F11-1,$A$11:E26,12,FALSE)) -> -0.074002438 | G23: =IF(ISERROR((G22-HLOOKUP(G11-1,$A$11:F26,12,FALSE))/HLOOKUP(G11-1,$A$11:F26,12,FALSE)), "", (G22-HLOOKUP(G11-1,$A$11:F26,12,FALSE))/HLOOKUP(G11-1,$A$11:F26,12,FALSE)) -> 0.0009912511267 | H23: =IF(ISERROR((H22-HLOOKUP(H11-1,$A$11:G26,12,FALSE))/HLOOKUP(H11-1,$A$11:G26,12,FALSE)), "", (H22-HLOOKUP(H11-1,$A$11:G26,12,FALSE))/HLOOKUP(H11-1,$A$11:G26,12,FALSE)) -> 0.01251596287 | I23: =IF(ISERROR((I22-HLOOKUP(I11-1,$A$11:H26,12,FALSE))/HLOOKUP(I11-1,$A$11:H26,12,FALSE)), "", (I22-HLOOKUP(I11-1,$A$11:H26,12,FALSE))/HLOOKUP(I11-1,$A$11:H26,12,FALSE)) -> 0.08157118034 | J23: =IF(ISERROR((J22-HLOOKUP(J11-1,$A$11:I26,12,FALSE))/HLOOKUP(J11-1,$A$11:I26,12,FALSE)), "", (J22-HLOOKUP(J11-1,$A$11:I26,12,FALSE))/HLOOKUP(J11-1,$A$11:I26,12,FALSE)) -> 0.05589334703 | K23: =IF(ISERROR((K22-HLOOKUP(K11-1,$A$11:J26,12,FALSE))/HLOOKUP(K11-1,$A$11:J26,12,FALSE)), "", (K22-HLOOKUP(K11-1,$A$11:J26,12,FALSE))/HLOOKUP(K11-1,$A$11:J26,12,FALSE)) -> 0.04847632375 | L23: =IF(ISERROR((L22-K22)/K22), "", (L22-K22)/K22) -> 0.08997648333 | M23: =IF(ISERROR((M22-L22)/L22), "", (M22-L22)/L22) -> 0.04295090758 | N23: =IF(ISERROR((N22-M22)/M22), "", (N22-M22)/M22) -> 0.04865570565 | O23: 0.04290614576 | P23: 0.02752960713 | S23: Percent Change: Test year vs. Most Current Actual | AE23: =IF(ISERROR((AE20-AB20)/AB20), "", (AE20-AB20)/AB20) -> 0.1418225686
A24: %Change (Test Year vs Last Rebasing Year - Actual) | L24: =IF(ISERROR((L22-#REF!)/#REF!), "", (L22-#REF!)/#REF!) ->  | S24: Simple average of % variance for all years | AE24: =IF(ISERROR(AVERAGEIF(V22:AE22,"<>0")),0,AVERAGEIF(V22:AE22,"<>0")) -> 0.04966384032
A25: Total | B25: =SUM(B22,B16) -> 215323703.2 | C25: 232182788.7 | D25: 264498615.8 | E25: 285420066.6 | F25: 274765645.3 | G25: =SUM(G22,G16) -> 288617432.6 | H25: =SUM(H22,H16) -> 287244923.1 | I25: 292002243.1 | J25: =SUM(J22,J16) -> 310939144.6 | K25: =SUM(K22,K16) -> 318793184 | L25: =SUM(L22,L16) -> 355037332.8 | M25: =SUM(M22,M16) -> 371946785.4 | N25: =SUM(N22,N16) -> 389476081.7 | O25: 404001407.4 | P25: 415109508.3 | S25: Compound Annual Growth Rate for all years | AF25: =IF((AE20-T20)=0, "", (AE20/T20)^(1/(2027-2017))-1) -> 0.05127955435
A26: %Change (year over year) | B26: =IF(ISERROR((B25-HLOOKUP(B11-1,$A$11:A26,15,FALSE))/HLOOKUP(B11-1,$A$11:A26,15,FALSE)), "", (B25-HLOOKUP(B11-1,$A$11:A26,15,FALSE))/HLOOKUP(B11-1,$A$11:A26,15,FALSE)) ->  | C26: =IF(ISERROR((C25-HLOOKUP(C11-1,$A$11:B26,15,FALSE))/HLOOKUP(C11-1,$A$11:B26,15,FALSE)), "", (C25-HLOOKUP(C11-1,$A$11:B26,15,FALSE))/HLOOKUP(C11-1,$A$11:B26,15,FALSE)) -> 0.07829646802 | D26: =IF(ISERROR((D25-HLOOKUP(D11-1,$A$11:C26,15,FALSE))/HLOOKUP(D11-1,$A$11:C26,15,FALSE)), "", (D25-HLOOKUP(D11-1,$A$11:C26,15,FALSE))/HLOOKUP(D11-1,$A$11:C26,15,FALSE)) -> 0.1391826989 | E26: =IF(ISERROR((E25-HLOOKUP(E11-1,$A$11:D26,15,FALSE))/HLOOKUP(E11-1,$A$11:D26,15,FALSE)), "", (E25-HLOOKUP(E11-1,$A$11:D26,15,FALSE))/HLOOKUP(E11-1,$A$11:D26,15,FALSE)) -> 0.07909852651 | F26: =IF(ISERROR((F25-HLOOKUP(F11-1,$A$11:E26,15,FALSE))/HLOOKUP(F11-1,$A$11:E26,15,FALSE)), "", (F25-HLOOKUP(F11-1,$A$11:E26,15,FALSE))/HLOOKUP(F11-1,$A$11:E26,15,FALSE)) -> -0.03732891468 | G26: =IF(ISERROR((G25-HLOOKUP(G11-1,$A$11:F26,15,FALSE))/HLOOKUP(G11-1,$A$11:F26,15,FALSE)), "", (G25-HLOOKUP(G11-1,$A$11:F26,15,FALSE))/HLOOKUP(G11-1,$A$11:F26,15,FALSE)) -> 0.05041309771 | H26: =IF(ISERROR((H25-HLOOKUP(H11-1,$A$11:G26,15,FALSE))/HLOOKUP(H11-1,$A$11:G26,15,FALSE)), "", (H25-HLOOKUP(H11-1,$A$11:G26,15,FALSE))/HLOOKUP(H11-1,$A$11:G26,15,FALSE)) -> -0.004755463085 | I26: =IF(ISERROR((I25-HLOOKUP(I11-1,$A$11:H26,15,FALSE))/HLOOKUP(I11-1,$A$11:H26,15,FALSE)), "", (I25-HLOOKUP(I11-1,$A$11:H26,15,FALSE))/HLOOKUP(I11-1,$A$11:H26,15,FALSE)) -> 0.01656189435 | J26: =IF(ISERROR((J25-HLOOKUP(J11-1,$A$11:I26,15,FALSE))/HLOOKUP(J11-1,$A$11:I26,15,FALSE)), "", (J25-HLOOKUP(J11-1,$A$11:I26,15,FALSE))/HLOOKUP(J11-1,$A$11:I26,15,FALSE)) -> 0.0648519041 | K26: =IF(ISERROR((K25-HLOOKUP(K11-1,$A$11:J26,15,FALSE))/HLOOKUP(K11-1,$A$11:J26,15,FALSE)), "", (K25-HLOOKUP(K11-1,$A$11:J26,15,FALSE))/HLOOKUP(K11-1,$A$11:J26,15,FALSE)) -> 0.02525908861 | L26: =IF(ISERROR((L25-K25)/K25), "", (L25-K25)/K25) -> 0.1136917305 | M26: =IF(ISERROR((M25-L25)/L25), "", (M25-L25)/L25) -> 0.04762725238 | N26: =IF(ISERROR((N25-M25)/M25), "", (N25-M25)/M25) -> 0.04712850604 | O26: 0.03729452554 | P26: 0.0274952033 | S26: ="Compound Growth Rate (" & 2027 - 3 & " vs. " & 2017 & " Actuals)" -> Compound Growth Rate (2024 vs. 2017 Actuals) | AE26: =IF((AA20-T20)=0, "", (AA20/T20)^(1/(2027-3-2016))-1) -> 0.03881160678
B29: =B12 -> 2017 Actuals | C29: 2018 Actuals | D29: 2019 Actuals | E29: 2020 Actuals | F29: 2021 Actuals | G29: 2022 Actuals | H29: 2023 Actuals | I29: 2024 Actuals | J29: 2025 Actuals | K29: 2026 Bridge Year | L29: 2027 Test Year | M29: =M12 -> 2028 Forecast Year | N29: 2029 Forecast Year | O29: 2030 Forecast Year | P29: 2031 Forecast Year
A30: Operations4 | B30: =B14 -> 53256001.56 | C30: 52729994.24 | D30: 89541387.43 | E30: 84136002.69 | F30: 83214862.07 | G30: 93267998.23 | H30: 87079578.71 | I30: 85996672.03 | J30: 92919701.79 | K30: 100622247.2 | L30: 118175455.2 | M30: =M14 -> 125263498.4 | N30: 130986784.7 | O30: 134767671.4 | P30: 138409767.8
A31: Maintenance5 | B31: 27671305.28 | C31: 33232383.63 | D31: 27747271.49 | E31: 26763321.45 | F31: 29945001.18 | G31: 33583460.43 | H31: 36374713.48 | I31: 28854345.14 | J31: 30966641.9 | K31: 22050503.8 | L31: 23095217.64 | M31: =M15 -> 23735155.05 | N31: 24693466.36 | O31: 25406627.38 | P31: 26160167.28
A32: Billing and Collecting6 | B32: =B19 -> 44060910.87 | C32: 37645860.69 | D32: 43381817.41 | E32: 64273545.97 | F32: 57378924.85 | G32: 51611529.22 | H32: 48598201.98 | I32: 49176173.74 | J32: 54054668.9 | K32: 55077813.66 | L32: 54227802.42 | M32: =M19 -> 56402655.34 | N32: 57407346.09 | O32: 59563041.89 | P32: 61505587.16
A33: Community Relations7 | B33: 3053878.83 | C33: 3069045.17 | D33: 2845057 | E33: 4445930.77 | F33: 3230371.15 | G33: 2562553.08 | H33: 2228912.77 | I33: 2210466.04 | J33: 2224552.48 | K33: 2285704.87 | L33: 2373752.78 | M33: =M20 -> 2452852.1 | N33: 2526914.27 | O33: 2602805.06 | P33: 2679465.58
A34: Administrative and General8 | B34: 87281606.69 | C34: 105505504.9 | D34: 100983082.5 | E34: 105801265.7 | F34: 100996486 | G34: 107591891.7 | H34: 112963516.1 | I34: 125764586.2 | J34: 130773579.5 | K34: 138756914.5 | L34: 157165104.7 | M34: =M21 -> 164092624.5 | N34: 173861570.3 | O34: 181661261.7 | P34: 186354520.4
A35: Total | B35: =SUM(B30:B34) -> 215323703.2 | C35: 232182788.7 | D35: =SUM(D30:D34) -> 264498615.8 | E35: =SUM(E30:E34) -> 285420066.6 | F35: 274765645.3 | G35: 288617432.6 | H35: 287244923.1 | I35: 292002243.1 | J35: 310939144.6 | K35: 318793184 | L35: 355037332.8 | M35: =SUM(M30:M34) -> 371946785.4 | N35: 389476081.7 | O35: 404001407.4 | P35: 415109508.3
A36: %Change (year over year) | B36: =IF(T11<=2016,"",IF(T11=2016+1,IF(ISERROR((B35-#REF!)/#REF!),"",(B35-#REF!)/#REF!),IF(ISERROR((B35-#REF!)/#REF!),"",(B35-#REF!)/#REF!))) ->  | C36: =IF(U11<=2016,"",IF(U11=2016+1,IF(ISERROR((C35-#REF!)/#REF!),"",(C35-#REF!)/#REF!),IF(ISERROR((C35-B35)/B35),"",(C35-B35)/B35))) -> 0.07829646802 | D36: =IF(V11<=2016,"",IF(V11=2016+1,IF(ISERROR((D35-#REF!)/#REF!),"",(D35-#REF!)/#REF!),IF(ISERROR((D35-C35)/C35),"",(D35-C35)/C35))) -> 0.1391826989 | E36: =IF(W11<=2016,"",IF(W11=2016+1,IF(ISERROR((E35-#REF!)/#REF!),"",(E35-#REF!)/#REF!),IF(ISERROR((E35-D35)/D35),"",(E35-D35)/D35))) -> 0.07909852651 | F36: =IF(X11<=2016,"",IF(X11=2016+1,IF(ISERROR((F35-#REF!)/#REF!),"",(F35-#REF!)/#REF!),IF(ISERROR((F35-E35)/E35),"",(F35-E35)/E35))) -> -0.03732891468 | G36: =IF(Y11<=2016,"",IF(Y11=2016+1,IF(ISERROR((G35-#REF!)/#REF!),"",(G35-#REF!)/#REF!),IF(ISERROR((G35-F35)/F35),"",(G35-F35)/F35))) -> 0.05041309771 | H36: =IF(Z11<=2016,"",IF(Z11=2016+1,IF(ISERROR((H35-#REF!)/#REF!),"",(H35-#REF!)/#REF!),IF(ISERROR((H35-G35)/G35),"",(H35-G35)/G35))) -> -0.004755463085 | I36: =IF(AA11<=2016,"",IF(AA11=2016+1,IF(ISERROR((I35-#REF!)/#REF!),"",(I35-#REF!)/#REF!),IF(ISERROR((I35-H35)/H35),"",(I35-H35)/H35))) -> 0.01656189435 | J36: =IF(AB11<=2016,"",IF(AB11=2016+1,IF(ISERROR((J35-#REF!)/#REF!),"",(J35-#REF!)/#REF!),IF(ISERROR((J35-I35)/I35),"",(J35-I35)/I35))) -> 0.0648519041 | K36: =IF(AC11<=2016,"",IF(AC11=2016+1,IF(ISERROR((K35-#REF!)/#REF!),"",(K35-#REF!)/#REF!),IF(ISERROR((K35-J35)/J35),"",(K35-J35)/J35))) -> 0.02525908861 | L36: =IF(AE11<=2016,"",IF(AE11=2016+1,IF(ISERROR((L35-#REF!)/#REF!),"",(L35-#REF!)/#REF!),IF(ISERROR((L35-K35)/K35),"",(L35-K35)/K35))) -> 0.1136917305 | M36: =IF(AG11<=2016,"",IF(AG11=2016+1,IF(ISERROR((M35-#REF!)/#REF!),"",(M35-#REF!)/#REF!),IF(ISERROR((M35-L35)/L35),"",(M35-L35)/L35))) -> 0.04762725238 | N36: =IF(AH11<=2016,"",IF(AH11=2016+1,IF(ISERROR((N35-#REF!)/#REF!),"",(N35-#REF!)/#REF!),IF(ISERROR((N35-M35)/M35),"",(N35-M35)/M35))) -> 0.04712850604 | O36: =IF(AI11<=2016,"",IF(AI11=2016+1,IF(ISERROR((O35-#REF!)/#REF!),"",(O35-#REF!)/#REF!),IF(ISERROR((O35-N35)/N35),"",(O35-N35)/N35))) -> 0.03729452554 | P36: =IF(AJ11<=2016,"",IF(AJ11=2016+1,IF(ISERROR((P35-#REF!)/#REF!),"",(P35-#REF!)/#REF!),IF(ISERROR((P35-O35)/O35),"",(P35-O35)/O35))) -> 0.0274952033
A38: Note:
A40: 1 Historical actuals going back to the last cost of service application are required to be entered by the applicant.
A41: 2 Recoverable OM&A that is included on these tables should be identical to the recoverable OM&A that is shown for the corresponding periods on Appendix 2-JB.
A42: 3 For unrecoverable OM&A Expenses see Section 2.4.3.7
A43: 4 USoA included in Operations: 5005, 5010, 5012, 5014, 5015, 5016, 5017, 5020, 5025, 5030, 5035, 5040, 5045, 5050, 5055, 5060, 5065, 5070, 5075, 5085, 5090, 5095, 5096
A44: 5 USoA included in Maintenance: 5305, 5310, 5315, 5320, 5325, 5330, 5335, 5340
A45: 6 USoA included in Billing and Collecting: 5105, 5110, 5112, 5114, 5120, 5125, 5130, 5135, 5145, 5150, 5155, 5160, 5165, 5170, 5172, 5175, 5178, 5195
A46: 7 USoA included in Community Relations: 5405, 5410, 5415, 5420, 5425
A47: 8 USoA included in Administrative and General: 5505, 5510, 5515, 5520, 5605, 5610, 5615, 5620, 5625, 5630, 5635, 5640, 5645, 5646, 5647, 5650, 5655, 5660, 5665, 5670, 5672, 5675, 5680, 5681, 5685, 5695 & 6205 (sub-account LEAP funding)
